Cogmind - Beta 13 @@@ ROGUE MODE // 2024.05.19 @ 18:00:52 Player: Bace Troncons Result: Destroyed by D-53 Grenadier with Mini Grenade Launcher Performance ------------- Evolutions (0) 0 Regions Visited (3) 600 Robots Destroyed (21) 105 Value Destroyed (525) 525 Prototype IDs (6) 120 Alien Tech Used (0) 0 Bonus (0) 0 TOTAL SCORE: 1350 Bonus ------- None Cogmind --------- Core Integrity 0/250 Matter 232/300 Energy 100/100 System Corruption 0% Temperature Cool (1) Movement Walking (144) Location -9/Recycling Parts ------- > --- POWER (1) -------- (None) > --- PROPULSION (2) --- Aluminum Exoskeleton > --- UTILITY (2) ------ Armored Scrap Engine > --- WEAPON (2) ------- Grenade Launcher Mining Laser > --- INVENTORY (5) ---- Light Ion Engine Heat Sink Peak State ------------ > --- POWER ------------ Multi-Ion Engine > --- PROPULSION ------- Aluminum Exoskeleton > --- UTILITY ---------- Armored Scrap Engine > --- WEAPON ----------- Shotgun EM Beam Construct/C Electro Shock Construct/G > --- INVENTORY -------- Light Ion Engine Aluminum Leg Aluminum Leg Heat Sink Grenade Launcher [Rating: 28] Favorites ----------- Power Constructs Engine Constructs Propulsion Light Treads Treads Light Treads Leg Constructs Utility Armored Scrap Engine Device Armored Scrap Engine Storage Small Storage Unit Weapon Assault Rifle Energy Gun Constructs Energy Cannon Constructs Ballistic Gun Assault Rifle Launcher Grenade Launcher Special Weapon Mining Laser Build | -11 -10 -10 -9 ------- Run | Yrd Mat Sub Rec Slots Evolved . | . . . . Power . | . . . . Propulsion . | . . . . Utility . | . . . . Weapon . | . . . . Parts Attached 13 | 7 1 . 5 Power 1 | 1 . . . Engine 1 | 1 . . . Core . | . . . . Reactor . | . . . . Propulsion 2 | 2 . . . Treads 2 | 2 . . . Leg . | . . . . Wheel . | . . . . Hover . | . . . . Flight . | . . . . Utility 3 | 1 1 . 1 Device 2 | . 1 . 1 Storage 1 | 1 . . . Processor . | . . . . Hackware . | . . . . Protection . | . . . . Artifact . | . . . . Weapon 7 | 3 . . 4 Energy Gun 2 | 1 . . 1 Energy Cannon . | . . . . Ballistic Gun 3 | 2 . . 1 Ballistic Cannon . | . . . . Launcher 1 | . . . 1 Special Weapon 1 | . . . 1 Impact Weapon . | . . . . Slashing Weapon . | . . . . Piercing Weapon . | . . . . Special Melee Weapon . | . . . . Unidentified Prototypes . | . . . . Parts Lost 4 | . . 1 3 Power 1 | . . . 1 Propulsion . | . . . . Utility . | . . . . Weapon 3 | . . 1 2 Highest Loss Streak 3 | . . 1 3 To Critical Strikes . | . . . . Average Slot Usage (%) 79 | . 96 97 71 Engine 13 | . 14 14 13 Treads 15 | . 28 28 10 Leg 4 | . . . 6 Device 13 | . 10 14 14 Storage 4 | . 14 14 . Energy Cannon 3 | . . . 5 Ballistic Gun 21 | . 28 25 18 Naked Turns . | . . . . Heaviest Build 15 | 13 14 14 15 Greatest Support 40 | 40 40 40 40 Greatest Overweight (x) 4 | 4 . . 3 Average Overweight (x) . | 1 . . . Largest Inventory Capacity 8 | 8 8 8 8 Average Capacity 6 | 7 8 8 5 Most Carried 6 | 6 6 6 5 Average Carried 4 | 2 5 6 4 Final Capacity 8 | 8 8 8 5 Final Carried 6 | 4 6 6 2 Scrap Engine Consumption 60 | . . . 60 Constructs Created 4 | . . . 4 Constructs Modified 13 | . . . 13 Class Distribution -------------------- 59% | Construct 40% | Mutant Dominant Class ---------------- Mutant | -10/Materials Mutant | -10/Subcaves Construct | -9/Recycling Resources | -11 -10 -10 -9 ----------- Run | Yrd Mat Sub Rec Matter Collected 427 | 239 48 . 140 Remotely . | . . . . Salvage Created 1236 | . 101 . 1135 Parts 71 | . 12 . 59 Haulers Intercepted . | . . . . Recyclers Shooed 2 | . 2 . . Parts Field Recycled . | . . . . Retrieved Matter . | . . . . Parts Self-Destructed . | . . . . Prevented . | . . . . Kills | -11 -10 -10 -9 ------- Run | Yrd Mat Sub Rec Combat Hostiles Destroyed 11 | . 2 . 9 Guns 8 | . 2 . 6 Cannons 3 | . . . 3 Classes Destroyed 11 | . 3 . 8 Builder 1 | . 1 . . Tunneler 2 | . . . 2 Recycler 6 | . . . 6 Operator 1 | . 1 . . Swarmer 1 | . . . 1 Grunt 2 | . 2 . . Brawler 1 | . . . 1 Duelist 1 | . . . 1 Sentry 4 | . . . 4 Demolisher 1 | . . . 1 Programmer 1 | . . . 1 Best Kill Streak 7 | . 4 . 7 Combat Bots Only 2 | . 2 . 2 Max Kills in Single Turn 3 | . 1 . 3 Gunslinging . | . . . . Exploded . | . . . . Melee . | . . . . Uniques/NPCs Destroyed . | . . . . Combat | -11 -10 -10 -9 -------- Run | Yrd Mat Sub Rec Hostile Shots Fired 94 | . 8 57 29 Missed 28 | . 3 21 4 Damage Taken 1230 | . 55 251 924 Core 272 | . 10 47 215 Absorbed by Shields . | . . . . Regen/Repaired (Parts) 99 | . . . 99 Core Remaining (%) 100 | 100 . . . Volleys Fired 51 | . 12 . 39 Largest 2 | . 2 . 2 Hottest 109 | . 40 . 109 Shots Fired 96 | . 24 . 72 Gun 62 | . 24 . 38 Cannon 29 | . . . 29 Launcher 5 | . . . 5 Special . | . . . . Kinetic 32 | . 24 . 8 Thermal 28 | . . . 28 Explosive 5 | . . . 5 Electromagnetic 31 | . . . 31 Robot Hit Streak 32 | . 6 . 32 Robot Miss Streak 4 | . 1 . 4 Penetration Max . | . . . . Secondary Targets . | . . . . Shots Hit Robots 67 | . 16 . 51 Core Hits 64 | . 7 . 57 Critical Kills . | . . . . Critical Parts Destroyed . | . . . . Critical Strikes . | . . . . Melee Attacks . | . . . . Impact . | . . . . Slashing . | . . . . Piercing . | . . . . Sneak Attacks . | . . . . Combat Hostiles . | . . . . Follow-up Attacks . | . . . . Damage Inflicted 1225 | . 165 . 1060 Guns 552 | . 165 . 387 Cannons 342 | . . . 342 Explosions 331 | . . . 331 Melee . | . . . . Ramming . | . . . . Kinetic 262 | . 165 . 97 Thermal 489 | . . . 489 Explosive 96 | . . . 96 Electromagnetic 378 | . . . 378 Impact . | . . . . Slashing . | . . . . Piercing . | . . . . Highest Corruption . | . . . . Average Corruption . | . . . . Corruption Purged . | . . . . Corruption Blocked . | . . . . Overload Shots . | . . . . Overflow Damage 27 | . . . 27 Projectiles . | . . . . Explosions 27 | . . . 27 Melee . | . . . . Knockbacks . | . . . . Impact . | . . . . Kinetic . | . . . . Secondary . | . . . . Self-Inflicted Damage 103 | . . . 103 Shots 3 | . . . 3 Rammed . | . . . . Targets Rammed . | . . . . Kicked . | . . . . Crushed . | . . . . Highest Temperature 245 | . 6 . 245 Average Temperature 70 | . 6 . 72 Received Heat Transfer 171 | . 30 114 27 Siege Activations . | . . . . Robots Corrupted . | . . . . Combat Hostiles . | . . . . Parts Fried . | . . . . Impact Corruptions . | . . . . Robots Melted . | . . . . Combat Hostiles . | . . . . Parts Melted . | . . . . Heat Transferred 560 | . . . 560 Parts Sabotaged . | . . . . Parts Stolen . | . . . . Parts Stripped . | . . . . Power Chain Reactions 2 | . . . 2 Alert | -11 -10 -10 -9 ------- Run | Yrd Mat Sub Rec Peak Influence 221 | . 82 . 221 Initial 175 | . . . 175 Average 66 | . 41 . 81 Maximum Alert Level 1 | . . . 1 Low Security (%) 97 | 100 100 . 96 Level 1 2 | . . . 3 Level 2 . | . . . . Level 3 . | . . . . Level 4 . | . . . . Level 5 . | . . . . High Security . | . . . . Max Security . | . . . . Squads Dispatched 1 | . 1 . . Investigation . | . . . . Extermination . | . . . . Reinforcement 1 | . 1 . . Assault . | . . . . Garrison . | . . . . Intercept . | . . . . Searches Triggered . | . . . . Construction Impeded . | . . . . Haulers Reinforced . | . . . . Active Scanning Responses . | . . . . Cargo Convoy Interrupts . | . . . . Stealth | -11 -10 -10 -9 --------- Run | Yrd Mat Sub Rec Distress Signals . | . . . . Communications Jammed . | . . . . Distress Signals . | . . . . Times Spotted 39 | . 3 29 7 Peak Tracking Total 6 | . 2 6 2 Tactical Retreats 1 | . . 1 . Traps | -11 -10 -10 -9 ------- Run | Yrd Mat Sub Rec Traps Triggered . | . . . . Indirectly . | . . . . Trap Hack Attempts . | . . . . Triggered . | . . . . Disarmed . | . . . . Reprogrammed . | . . . . Reused . | . . . . Traps Extracted . | . . . . Installed . | . . . . Triggered . | . . . . Machines | -11 -10 -10 -9 ---------- Run | Yrd Mat Sub Rec Machines Disabled . | . . . . Max in Single Turn . | . . . . Machines Repaired . | . . . . Machines Dismantled . | . . . . Machines Sabotaged . | . . . . Overloaded Fab Kills . | . . . . Hacking | -11 -10 -10 -9 --------- Run | Yrd Mat Sub Rec Machines Accessed 12 | . 1 . 11 Terminals 5 | . 1 . 4 Fabricators . | . . . . Repair Stations . | . . . . Recycling Units 7 | . . . 7 Scanalyzers . | . . . . Garrison Access . | . . . . Total Hacks 27 | . 1 . 26 Successful 9 | . 1 . 8 Failed 18 | . . . 18 Catastrophic 3 | . . . 3 Database Lockouts . | . . . . Manual 3 | . . . 3 Terminals 12 | . 1 . 11 Fabricators . | . . . . Repair Stations . | . . . . Recycling Units 15 | . . . 15 Scanalyzers . | . . . . Garrison Access . | . . . . Terminal Hacks 4 | . 1 . 3 Part Schematic 2 | . . . 2 Prototype ID Bank 1 | . . . 1 Recall Investigation 1 | . 1 . . Fabricator Hacks . | . . . . Repair Station Hacks . | . . . . Recycling Unit Hacks 5 | . . . 5 Retrieve Components 5 | . . . 5 Scanalyzer . | . . . . Garrison Access Hacks . | . . . . Unauthorized Hacks . | . . . . Terminals . | . . . . Fabricators . | . . . . Repair Stations . | . . . . Recycling Units . | . . . . Scanalyzers . | . . . . Garrison Access . | . . . . Data Cores Recovered . | . . . . Used . | . . . . Hacking Detections 5 | . . . 5 Full Trace Events 1 | . . . 1 Feedback Events . | . . . . Feedback Blocked . | . . . . Robot Schematics Acquired . | . . . . Robots Built . | . . . . Authchips . | . . . . Time . | . . . . Total Robot Build Rating . | . . . . Part Schematics Acquired 2 | . . . 2 Parts Built . | . . . . Authchips . | . . . . Time . | . . . . Total Part Build Rating . | . . . . Parts Repaired . | . . . . Time . | . . . . Parts Recycled . | . . . . Recycled Matter . | . . . . Retrieved Matter . | . . . . Retrieved Components 5 | . . . 5 Parts Scanalyzed . | . . . . Part Schematics Acquired . | . . . . Parts Damaged . | . . . . Bothacking | -11 -10 -10 -9 ------------ Run | Yrd Mat Sub Rec Used RIF Installer . | . . . . Robots Hacked . | . . . . Non-combat . | . . . . Combat . | . . . . Robot Hacks Applied . | . . . . Relay Couplers Released . | . . . . Fabnet Peak Effective % . | . . . . Robots Rewired . | . . . . Allies Hacked . | . . . . Hacks Repelled . | . . . . Allies | -11 -10 -10 -9 -------- Run | Yrd Mat Sub Rec Total Allies . | . . . . Largest Group . | . . . . Highest-Rated Group . | . . . . Highest-Rated Ally . | . . . . Total Orders . | . . . . Ally Attacks . | . . . . Total Damage . | . . . . Kills . | . . . . Allies Corrupted . | . . . . Allies Melted . | . . . . Intel | -11 -10 -10 -9 ------- Run | Yrd Mat Sub Rec Robot Analysis Total . | . . . . Derelict Logs Recovered . | . . . . Drone Launches . | . . . . Drone Recoveries . | . . . . Exploration | -11 -10 -10 -9 ------------- Run | Yrd Mat Sub Rec Turns Passed 2190 | 77 627 45 1441 Spaces Moved 905 | 35 54 29 787 Core 58 | 21 . . 37 Treads 459 | 14 54 29 362 Legs 325 | . . . 325 Wheels . | . . . . Hover . | . . . . Flight 63 | . . . 63 Fastest Speed 50 | 50 160 160 111 Average Speed 160 | 176 160 160 160 Slowest Speed 250 | 250 160 160 200 Overloaded Moves . | . . . . Propulsion Burnouts . | . . . . Robots Hopped . | . . . . Cave-ins Triggered . | . . . . Exploration Rate (%) 28 | 4 8 3 97 Regions Visited 3 Branch Regions 2 Pre-discovered Areas . | . . . . Known Exits Taken . | . . . . Unknown Exits Taken 3 | 1 1 1 . Scrap Searched . | . . . . Spaces Dug . | . . . . Terrain Destroyed 40 | . . . 40 Melee . | . . . . Projectile . | . . . . AOE 40 | . . . 40 Terrain Rammed . | . . . . Walls Destroyed . | . . . . Machines Disabled . | . . . . Actions | -11 -10 -10 -9 --------- Run | Yrd Mat Sub Rec Total 1552 | 48 573 28 903 Wait 567 | 1 505 . 61 Move 902 | 34 53 28 787 Hop . | . . . . Pick Up 7 | 5 2 . . Fast Attach 9 | 5 1 . 3 Attach 4 | 2 . . 2 Detach 1 | 1 . . . Swap . | . . . . Drop 10 | . . . 10 Fire 51 | . 12 . 39 Melee . | . . . . Ram . | . . . . Kick . | . . . . Crush . | . . . . Escape Stasis . | . . . . Rewire 1 | . . . 1 Trap . | . . . . Miscellaneous . | . . . . Route ------- -11/Scrapyard -10/Materials -10/Subcaves -9/Recycling (discovered 1 exit: [*Fac]) History --------- Turn | Location | Event 27 | -11/Scrapyard | Discovered new exit (range 16) 78 | -11/Scrapyard | Entered Materials 314 | -10/Materials | Build established: Mutant 678 | -10/Materials | Discovered new exit (range 5) 705 | -10/Materials | Entered Subcaves 739 | -10/Subcaves | Discovered new exit (range 8) 750 | -10/Subcaves | Entered Recycling 757 | -9/Recycling | Found Scrap Engine 1185 | -9/Recycling | Build established: Construct 1244 | -9/Recycling | Discovered new exit (range 6) 2170 | -9/Recycling | Core integrity fell below 50% 2187 | -9/Recycling | Core integrity fell below 20% 2191 | -9/Recycling | Destroyed by D-53 Grenadier with Mini Grenade Launcher Last Messages --------------- 02162_ Arm. Scrap Engine consumes Cmb. Airjet. 02165_ G-34 Mercenary destroyed. 02165_ I-25 Savior destroyed. 02166_ Arm. Scrap Engine consumes Imp. Ion Engine. 02166_ U-05 Engineer destroyed. 02167_ Electro Shock Construct/G destroyed. 02167_ Arm. Scrap Engine damaged due to network destabilization (-7). 02167_ R-06 Scavenger destroyed. 02167_ I-25 Savior destroyed. 02167_ U-05 Engineer destroyed. 02169_ T-07 Excavator destroyed. 02177_ The unstable cave ceiling collapses. 02179_ R-06 Scavenger destroyed. 02182_ Acquired Mining Laser. 02183_ The unstable cave ceiling collapses. 02191_ Multi-Ion Engine destroyed. 02191_ Arm. Scrap Engine damaged due to network destabilization (-10). Map ----- +----------------------------------------------------+ | ??# #???????#"Y # #? | | ??# ! ! #???????#"" # #? | | ??############???????### # #? | | ?????????????????????### # #? | | ?????????????????????#"" ######? | | ?????????????????????#"Y ##????? | | ?????????????????????#"" %#????? | | ?????????????????????### ##????? | | ???????????????????????# #?????? | | ???????????????????????# #?????? | | ?????????????????????### #?????? | | ?????????????????????#"" ###???? | | ?????????????????????#"Y # ##### | | ???????###########???#"" # | | ???????# #???### # | | ???????# """ """ #?????# # | | ???????# """ """ #???### # | | ???????# """ """ #???# + | | ???????# """ """ #???# # | | ???????# """ """ #???# # | | ???????# ###?### # | | ?????### #???# # | | ???###T ##### ####### | | ???# #?????? | | ?### #?????? | | ?#"" @ #?????? | | ?#"Y # "Y"#####?????? | | ?#"" # ! #"""#?????????? | | ?### ## % [=#####?????????? | | ???# # k###???????????? | | ???# ### # #???????????? | | ???# < # ##???????????? | | ???# # # d #????????????? | | ???###### #???????????? | | ????????## d #??????????? | | ?????????## #??????????? | | ??????????#### # #??????????? | | ?????????????##### #??????????? | | ??????????????????#####??????????? | | ?????????????????????????????????? | | ?????????????????????????????????? | | ?????????????????????????????????? | | ?????????????????????????????????? | | ?????????????????????????????????? | | | | | | | | | | | | | +----------------------------------------------------+ Best States ------------- Heat Dissipation 25 Energy Generation 11 Energy Capacity 318 Matter Stores 300 Matter Capacity 300 Sight Range 16 Terrain Scan Range 14 Terrain Scan Density 10 Evasion (%) 55 Recoil Reduction 2 Item Schematics ----------------- Xenon Bombardment Thruster | -9/Recycling | Hacked Imp. Terrain Scan Processor | -9/Recycling | Hacked Robot Schematics ------------------ None Fabricated ------------ Nothing Alien Tech Used ----------------- None Achievements -------------- None Challenges ------------ None Game ------ Seed GyrokineticUltimateRail Manual? 0 Play Time 00:13:31 Cumulative 81.7 hours Start 2024.05.19 @ 17:46:41 End 2024.05.19 @ 18:00:52 Sessions 1 Manual Loads 0 Difficulty Rogue Special Mode None Game No. 130 Rogue 130 Adventurer 0 Explorer 0 Win Type - Total 1 Types 1/0/0/0/0/0/0/0/0 Lore% 40 Gallery% 43 Achievement% 32 Wizard Run 0 Options --------- Layout 1 ASCII 0 Keyboard 1 Movement Numpad Keybinds 0 Fullscreen 1 Font 24/Smallcaps Map View 50x35 Zoom Use 0% Tactical HUD 1 Map Filters NONE Filters NONE Steam 1 RUN: 10ae9086-76e2-4111-8726-ee86a7bd5973